bitfinex/quotes_BTCUSD_20250602
["timestamp","ask_amount","ask_price","bid_price","bid_amount"]
[1748844096787,0.03060482,104870.0,104860.0,0.33448206]
[1748844097001,0.03060482,104870.0,104860.0,0.35235329]
[1748844097219,0.08107541,104870.0,104860.0,0.35235329]
[1748844097461,0.08107541,104870.0,104860.0,0.35235356]
[1748844097698,0.25271842,104870.0,104860.0,0.32374549]
[1748844097925,0.25271842,104870.0,104860.0,0.34281828]
[1748844098150,0.2385649,104870.0,104860.0,0.34281828]
[1748844098363,0.2385649,104870.0,104860.0,0.3428188]
[1748844098591,0.2385649,104870.0,104860.0,0.34281894]
[1748844098995,0.2385649,104870.0,104860.0,0.33611663]
[1748844099252,0.24810033,104870.0,104860.0,0.34281849]
[1748844099787,0.24810033,104870.0,104860.0,0.01258762]
[1748844100004,0.96026326,104870.0,104860.0,0.0245743]
[1748844100205,0.24122327,104850.0,104840.0,0.04912314]
[1748844100413,0.24122327,104850.0,104840.0,0.07675387]
[1748844100616,0.24122327,104850.0,104840.0,0.25918336]
[1748844100971,0.24122327,104850.0,104840.0,0.26872143]
[1748844101181,0.24122327,104850.0,104840.0,0.28656399]
[1748844101590,0.24122327,104850.0,104840.0,0.26201807]
[1748844101791,0.24122327,104850.0,104840.0,0.28656326]
[1748844102169,0.24122327,104850.0,104840.0,0.28854866]
[1748844102531,0.24122327,104850.0,104840.0,0.2798585]
[1748844102741,0.24122327,104850.0,104840.0,0.28654872]
[1748844102944,0.24122327,104850.0,104840.0,0.28654835]
[1748844103324,0.24122327,104850.0,104840.0,0.28349656]
[1748844103530,0.24122327,104850.0,104840.0,0.27680677]
[1748844103812,0.24122327,104850.0,104840.0,0.25896634]
[1748844104016,0.24122327,104850.0,104840.0,0.28347757]
[1748844104581,0.24122327,104850.0,104840.0,0.29301545]
[1748844104995,0.24122327,104850.0,104840.0,0.29301361]
[1748844105200,0.25007591,104850.0,104840.0,0.29301361]
[1748844105331,0.25007591,104850.0,104840.0,0.27518726]
[1748844105548,0.25007591,104850.0,104840.0,0.28347093]
[1748844105947,0.25007591,104850.0,104840.0,0.283467]
[1748844106187,0.25007591,104850.0,104840.0,0.28346553]
[1748844106501,0.25007591,104850.0,104840.0,0.27392737]
[1748844106682,0.25007591,104850.0,104840.0,0.28346553]
[1748844106887,0.25007591,104850.0,104840.0,0.28346268]
[1748844107094,0.25007591,104850.0,104840.0,0.27392452]
[1748844107493,0.25007591,104850.0,104840.0,0.28346116]
[1748844107664,0.25007591,104850.0,104840.0,0.29299923]
[1748844107863,0.25007591,104850.0,104840.0,0.06692138]
[1748844108129,0.24053875,104850.0,104840.0,0.06692138]
[1748844108334,0.24053875,104850.0,104840.0,0.07645972]
[1748844108644,0.24053875,104850.0,104840.0,0.2672266]
[1748844109058,0.24053875,104850.0,104840.0,0.26722425]
[1748844109265,0.24053875,104850.0,104840.0,0.24941307]
[1748844109468,0.23100132,104850.0,104840.0,0.24273388]
[1748844109660,0.23100132,104850.0,104840.0,0.2767625]
[1748844110034,0.31976132,104850.0,104840.0,0.2767625]
[1748844110213,0.31976132,104850.0,104840.0,0.28630057]
[1748844110413,0.31976132,104850.0,104840.0,0.26848939]
[1748844110622,0.31976132,104850.0,104840.0,0.28629945]
[1748844110831,0.31976132,104850.0,104840.0,0.29583733]
[1748844111082,0.31976132,104850.0,104840.0,0.29583714]
[1748844111319,0.31976132,104850.0,104840.0,0.28915844]
[1748844111502,0.31976132,104850.0,104840.0,0.29583664]
[1748844111701,0.31090868,104850.0,104840.0,0.2958365]
[1748844112143,0.32044602,104850.0,104840.0,0.2958365]
[1748844112355,0.32044602,104850.0,104840.0,0.27134808]
[1748844112561,0.32044602,104850.0,104840.0,0.2958361]
[1748844112764,0.32044602,104850.0,104840.0,0.29583581]
[1748844113089,0.09829679,104850.0,104840.0,0.30537351]
[1748844113295,0.11737083,104850.0,104840.0,0.28756425]
[1748844113539,0.12690808,104850.0,104840.0,0.28756425]
[1748844113671,0.11737083,104850.0,104840.0,0.3053735]
[1748844113858,0.12690808,104850.0,104840.0,0.3053735]
[1748844114067,0.12690808,104850.0,104840.0,0.30537383]
[1748844114269,0.12690808,104850.0,104840.0,0.29869536]
[1748844114720,0.14310808,104850.0,104840.0,0.30537408]
[1748844114923,0.14310808,104850.0,104840.0,0.29869536]
[1748844115070,0.14310808,104850.0,104840.0,0.30537444]
[1748844115283,0.14310808,104850.0,104840.0,0.2875645]
[1748844115501,0.14310808,104850.0,104840.0,0.30537444]
[1748844115699,0.14310808,104850.0,104840.0,0.3053746]
[1748844116598,0.14310808,104850.0,104840.0,0.30537665]
[1748844117682,0.48310808,104850.0,104840.0,0.28088578]
[1748844117897,0.48310808,104850.0,104840.0,0.30537896]
[1748844118099,0.48310808,104850.0,104840.0,0.30538016]
[1748844119462,0.49264542,104850.0,104840.0,0.29869988]
[1748844119666,0.49264542,104850.0,104840.0,0.28756665]
[1748844119964,0.49264542,104850.0,104840.0,0.30538404]
[1748844120161,0.49264542,104850.0,104840.0,0.28088578]
[1748844120370,0.49264542,104850.0,104840.0,0.30538468]
[1748844120576,0.49264542,104850.0,104840.0,0.30538451]
[1748844120750,0.67385731,104850.0,104840.0,0.27009156]
[1748844120950,0.67385731,104850.0,104840.0,0.28631182]
[1748844121151,0.40041129,104850.0,104840.0,0.3053874]
[1748844121496,0.37814863,104850.0,104840.0,0.3053874]
[1748844121706,0.37814863,104850.0,104840.0,0.3362874]
[1748844121929,0.37814863,104850.0,104840.0,0.29870614]
[1748844122251,0.37814863,104850.0,104840.0,0.30538881]
[1748844122392,0.37814863,104850.0,104840.0,0.29585111]
[1748844122793,0.37814863,104850.0,104840.0,0.27803231]
[1748844122998,0.58399731,104850.0,104840.0,0.29585718]
[1748844123607,0.58399731,104850.0,104840.0,0.29585754]
[1748844123998,0.58042327,104850.0,104840.0,0.27678159]
[1748844124194,0.58042327,104850.0,104840.0,0.06693987]
[1748844124395,0.58042327,104850.0,104840.0,0.07647821]
[1748844124584,0.56134868,104850.0,104840.0,0.06693987]
[1748844124996,0.56134868,104850.0,104840.0,0.07648071]
[1748844125197,0.56134868,104850.0,104840.0,0.07954452]
[1748844125842,0.56134868,104850.0,104840.0,0.07955299]
[1748844126048,0.56134868,104850.0,104840.0,0.07001783]
[1748844126486,0.56134868,104850.0,104840.0,0.07001808]
[1748844126667,0.56134868,104850.0,104840.0,0.07001876]
[1748844127284,0.56134868,104850.0,104840.0,0.066967]
[1748844127511,0.56134868,104850.0,104840.0,0.07001876]
[1748844127792,0.56134868,104850.0,104840.0,0.07002993]
[1748844127995,0.56134868,104850.0,104840.0,0.06332947]
[1748844128212,0.56134868,104850.0,104840.0,0.0566372]
[1748844128353,0.56134868,104850.0,104840.0,0.06333366]
[1748844128706,0.56134868,104850.0,104840.0,0.06333365]
[1748844129110,0.56134868,104850.0,104840.0,0.06336234]
[1748844129853,0.56134868,104850.0,104840.0,0.06336233]
[1748844130072,0.56134868,104850.0,104840.0,0.06336229]
[1748844130300,0.56134868,104850.0,104840.0,0.06336243]
[1748844130505,0.56134868,104850.0,104840.0,0.04548468]
[1748844130664,0.56134868,104850.0,104840.0,0.06030632]
[1748844130864,0.56134868,104850.0,104840.0,0.04243074]
[1748844131360,0.56134868,104850.0,104840.0,0.0424307]
[1748844131927,0.6538599,104850.0,104840.0,0.0424307]
[1748844132135,0.6538599,104850.0,104840.0,0.04243069]
[1748844132392,0.6538599,104850.0,104840.0,0.04243068]
[1748844132393,0.56134868,104850.0,104840.0,0.04243068]
[1748844132739,0.56134868,104850.0,104840.0,0.0357282]
[1748844132939,0.56134868,104850.0,104840.0,0.04242908]
[1748844133167,0.56134868,104850.0,104840.0,0.0357282]
[1748844136602,0.53074868,104850.0,104840.0,0.0357282]
[1748844136809,0.90982868,104850.0,104840.0,0.0357282]
[1748844138915,0.90982868,104850.0,104840.0,0.05358249]
[1748844139109,0.42872,104850.0,104840.0,0.2729633]
[1748844139303,0.45733065,104850.0,104840.0,0.31085804]
[1748844139485,0.4668679,104850.0,104840.0,0.31085785]
[1748844139999,0.3781479,104850.0,104840.0,0.31085785]
[1748844140202,0.3781479,104850.0,104840.0,0.31085714]
[1748844140389,0.38768524,104850.0,104840.0,0.31085723]
[1748844140576,0.38768524,104850.0,104840.0,0.32039493]
[1748844140781,0.38768524,104850.0,104840.0,0.32039573]
[1748844141245,0.38768524,104850.0,104840.0,0.30254196]
[1748844141389,0.34953661,104850.0,104840.0,0.31370057]
[1748844141589,0.34953661,104850.0,104840.0,0.39475296]
[1748844141826,0.34953661,104850.0,104840.0,0.41930243]
[1748844142035,0.36861028,104850.0,104840.0,0.41930243]
[1748844142388,0.36861028,104850.0,104840.0,0.41930209]
[1748844142630,0.36861028,104850.0,104840.0,0.41930128]
[1748844142809,0.36861028,104850.0,104840.0,0.41260618]
[1748844143006,0.36861028,104850.0,104840.0,0.39475296]
[1748844143211,0.36861028,104850.0,104840.0,0.41930115]
[1748844143812,0.37814753,104850.0,104840.0,0.41930115]
[1748844144013,0.36861028,104850.0,104840.0,0.41930075]
[1748844144293,0.37814735,104850.0,104840.0,0.41260579]
[1748844144465,0.37814735,104850.0,104840.0,0.4193006]
[1748844144662,0.36861028,104850.0,104840.0,0.40144777]
[1748844144886,0.36861028,104850.0,104840.0,0.41930057]
[1748844145030,0.36861028,104850.0,104840.0,0.41930056]
[1748844145490,0.37814735,104850.0,104840.0,0.41930056]
[1748844145800,0.37814735,104850.0,104840.0,0.41930052]
[1748844146332,0.37814735,104850.0,104840.0,0.39475296]
[1748844146532,0.37814735,104850.0,104840.0,0.41930052]
[1748844146732,0.37814735,104850.0,104840.0,0.41930065]
[1748844146932,0.38768451,104850.0,104840.0,0.4193005]
[1748844148177,0.38768451,104850.0,104840.0,0.41930006]
[1748844148733,0.38768515,104850.0,104840.0,0.41930006]
[1748844148867,0.38768515,104850.0,104840.0,0.41929997]
[1748844149071,0.56981059,104860.0,104850.0,0.21936015]
[1748844149072,0.09825616,104860.0,104850.0,0.21936015]
[1748844149311,0.58888308,104860.0,104850.0,0.24921804]
[1748844149517,0.92888308,104860.0,104850.0,0.26706813]
[1748844149921,0.92888308,104860.0,104850.0,0.26706808]
[1748844150118,0.92888308,104860.0,104850.0,0.24252327]
[1748844150349,0.92888308,104860.0,104850.0,0.26706808]
[1748844150350,0.94041896,104860.0,104850.0,0.26706808]
[1748844150510,0.94141896,104860.0,104850.0,0.26706808]
[1748844151493,0.94141896,104860.0,104850.0,0.26706769]
[1748844151903,0.94141896,104860.0,104850.0,0.03408185]
[1748844152081,0.93188308,104860.0,104850.0,0.234367]
[1748844152503,0.93188308,104860.0,104850.0,0.2439037]
[1748844153473,0.93188308,104860.0,104850.0,0.24390358]
[1748844154175,0.93188308,104860.0,104850.0,0.24390252]
[1748844154392,0.93188308,104860.0,104850.0,0.24390184]
[1748844154594,0.93188308,104860.0,104850.0,0.24390141]
[1748844155396,0.64152308,104860.0,104850.0,0.24390141]
[1748844155606,0.93184308,104860.0,104850.0,0.25343848]
[1748844155803,0.93184308,104860.0,104850.0,0.25343787]
[1748844156616,0.93184308,104860.0,104850.0,0.25343756]
[1748844157178,0.93184308,104860.0,104850.0,0.25343673]
[1748844157419,0.93184308,104860.0,104850.0,0.2629737]
[1748844157824,0.93184308,104860.0,104850.0,0.25628121]
[1748844158003,0.93184308,104860.0,104850.0,0.26297341]
[1748844158198,0.93184308,104860.0,104850.0,0.26297263]
[1748844158608,0.93184308,104860.0,104850.0,0.26297247]
[1748844158809,0.93184308,104860.0,104850.0,0.26297158]
[1748844159933,0.93184308,104860.0,104850.0,0.26297156]
[1748844160100,0.93184308,104860.0,104850.0,0.26297149]
[1748844160763,0.93184308,104860.0,104850.0,0.26297168]
[1748844162496,0.93184308,104860.0,104850.0,0.26297186]
[1748844163064,0.93184308,104860.0,104850.0,0.2629722]
[1748844163446,0.93184308,104860.0,104850.0,0.26297564]
[1748844163642,0.93184308,104860.0,104850.0,0.25343867]
[1748844165144,0.93184308,104860.0,104850.0,0.25343985]
[1748844165560,0.93184308,104860.0,104850.0,0.25344684]
[1748844165982,0.93184308,104860.0,104850.0,0.25344871]
[1748844167015,0.93184308,104860.0,104850.0,0.26298559]
[1748844167218,0.9413796,104860.0,104850.0,0.26299113]
[1748844167435,0.9413796,104860.0,104850.0,0.25935094]
[1748844168054,0.9413796,104860.0,104850.0,0.26605025]
[1748844168466,0.9413796,104860.0,104850.0,0.26605027]
[1748844168757,0.9413796,104860.0,104850.0,0.26605036]
[1748844168985,0.9413796,104860.0,104850.0,0.26605043]
[1748844170956,0.9413796,104860.0,104850.0,0.26604988]
[1748844171148,0.9413796,104860.0,104850.0,0.26605291]
[1748844171370,0.9413796,104860.0,104850.0,0.25935358]
[1748844171648,0.9413796,104860.0,104850.0,0.26605714]
[1748844172380,0.9413796,104860.0,104850.0,0.26605745]
[1748844172579,0.93184344,104860.0,104850.0,0.22120775]
[1748844172797,0.93184344,104860.0,104850.0,0.23744726]
[1748844173435,0.93184344,104860.0,104850.0,0.23744734]
[1748844174366,0.93184344,104860.0,104850.0,0.23744738]
[1748844174547,0.93184344,104860.0,104850.0,0.21287465]
[1748844174802,0.93184344,104860.0,104850.0,0.23744859]
[1748844175004,0.93184344,104860.0,104850.0,0.23744872]
[1748844175316,0.93184344,104860.0,104850.0,0.23439707]
[1748844175490,0.93184344,104860.0,104850.0,0.23744872]
[1748844175997,0.93184344,104860.0,104850.0,0.21957711]
[1748844176298,0.93184344,104860.0,104850.0,0.23745035]
[1748844176678,0.93184344,104860.0,104850.0,0.23745216]
[1748844176875,0.93184344,104860.0,104850.0,0.21287465]
[1748844177073,0.93184344,104860.0,104850.0,0.23745284]
[1748844177235,0.91277049,104860.0,104850.0,0.02762984]
[1748844177436,0.91277049,104860.0,104850.0,0.03716727]
[1748844177640,0.91277049,104860.0,104850.0,0.21957824]
[1748844177888,0.94137933,104860.0,104850.0,0.24699051]
[1748844178543,0.003,104860.0,104850.0,0.36600739]
[1748844178733,0.003,104860.0,104850.0,0.38388317]
[1748844178938,0.003,104860.0,104850.0,0.70406752]
[1748844179733,0.003,104860.0,104850.0,0.70404347]
[1748844179936,0.003,104860.0,104850.0,0.6973463]
[1748844180481,0.003,104860.0,104850.0,0.68437192]
[1748844180684,0.003,104860.0,104850.0,0.70892674]
[1748844181381,0.003,104860.0,104850.0,0.38874239]
[1748844181788,0.003,104860.0,104850.0,0.3887339]
[1748844182004,0.003,104860.0,104850.0,0.38873071]
[1748844182221,0.003,104860.0,104850.0,0.36782991]
[1748844182427,0.003,104860.0,104850.0,0.38873031]
[1748844182666,0.003,104860.0,104850.0,0.39787129]
[1748844182860,0.003,104860.0,104850.0,0.41713067]
[1748844183278,0.003,104860.0,104850.0,0.41712228]
[1748844183691,0.003,104860.0,104850.0,0.41711834]
[1748844183893,0.003,104860.0,104850.0,0.39927563]
[1748844184092,0.003,104860.0,104850.0,0.41042231]
[1748844184250,0.003,104860.0,104850.0,0.41222558]
[1748844184466,0.003,104860.0,104850.0,0.75164296]
[1748844184659,0.003,104860.0,104850.0,0.84032296]
[1748844184861,0.003,104860.0,104850.0,0.84032158]
[1748844185087,0.003,104860.0,104850.0,0.84032157]
[1748844185293,0.001,104860.0,104850.0,1.24032121]
[1748844185667,0.001,104860.0,104850.0,1.53056121]
[1748844185868,0.001,104860.0,104850.0,1.15164121]
[1748844186080,0.001,104860.0,104850.0,1.53056121]
[1748844186520,0.02953388,104880.0,104870.0,0.25121805]
[1748844186680,0.02,104880.0,104870.0,0.64704412]
[1748844186868,0.02,104880.0,104870.0,0.66486037]
[1748844187100,0.02,104880.0,104870.0,0.64036303]
[1748844187357,0.02,104880.0,104870.0,0.66486038]
[1748844187551,0.02953388,104880.0,104870.0,0.66486013]
[1748844188246,0.03053388,104880.0,104870.0,0.66486013]
[1748844188651,0.03053388,104880.0,104870.0,0.65817929]
[1748844188821,0.03053388,104880.0,104870.0,0.66485844]
[1748844189021,0.03053388,104880.0,104870.0,0.37461844]
[1748844189225,0.03253388,104880.0,104870.0,0.66481844]
[1748844189423,0.03253388,104880.0,104870.0,0.64700218]
[1748844189644,0.03253388,104880.0,104870.0,0.6648125]
[1748844190237,0.04206794,104880.0,104870.0,0.35012303]
[1748844190437,0.03253388,104880.0,104870.0,0.66480779]
[1748844190692,0.03253388,104880.0,104870.0,0.64032303]
[1748844190927,0.03253388,104880.0,104870.0,0.66175705]
[1748844191091,0.03253388,104880.0,104870.0,0.66480479]
[1748844191255,0.04206794,104880.0,104870.0,0.66480479]
[1748844192113,0.03253388,104880.0,104870.0,0.66480202]
[1748844192275,0.03253388,104880.0,104870.0,0.66480198]
[1748844192476,0.03253388,104880.0,104870.0,0.66480188]
[1748844192867,0.03253388,104880.0,104870.0,0.6648016]
[1748844193067,0.04206785,104880.0,104870.0,0.6648016]
[1748844193683,0.03253388,104880.0,104870.0,0.66480113]
[1748844193882,0.04206785,104880.0,104870.0,0.66480113]
[1748844194128,0.04206785,104880.0,104870.0,0.66479989]
[1748844194490,0.03253388,104880.0,104870.0,0.66479989]
[1748844194716,0.04206785,104880.0,104870.0,0.66479989]
[1748844194922,0.04206785,104880.0,104870.0,0.37459989]
[1748844195117,0.04206785,104880.0,104870.0,0.66475989]
[1748844195335,0.023,104880.0,104870.0,0.66475988]
[1748844195664,0.023,104880.0,104870.0,0.66475911]
[1748844196026,0.023,104880.0,104870.0,0.66475909]
[1748844197504,0.023,104880.0,104870.0,0.6580836]
[1748844197705,0.023,104880.0,104870.0,0.66475881]
[1748844197912,0.023,104880.0,104870.0,0.66475905]
[1748844198097,0.023,104880.0,104870.0,0.6647597]
[1748844198293,0.023,104880.0,104870.0,0.64695885]
[1748844198499,0.023,104880.0,104870.0,0.66476104]
[1748844198802,0.023,104880.0,104870.0,0.65808522]
[1748844198981,0.023,104880.0,104870.0,0.66476129]
[1748844199588,0.023,104880.0,104870.0,0.66171061]
[1748844199795,0.03253397,104880.0,104870.0,0.66171061]
[1748844200007,0.03253388,104880.0,104870.0,0.66476129]
[1748844200351,0.023,104880.0,104870.0,0.66476129]
[1748844200552,0.03253388,104880.0,104870.0,0.66476129]
[1748844200977,0.03253388,104880.0,104870.0,0.64028303]
[1748844201207,0.03253388,104880.0,104870.0,0.66476653]
[1748844201388,0.03253388,104880.0,104870.0,0.64028303]
[1748844201587,0.03253388,104880.0,104870.0,0.66476991]
[1748844202827,0.03253388,104880.0,104870.0,0.6647738]
[1748844203029,0.03253388,104880.0,104870.0,0.66477526]
[1748844203380,0.02970436,104880.0,104870.0,0.35012303]
[1748844203565,0.03923842,104880.0,104870.0,0.65809978]
[1748844203770,0.03923842,104880.0,104870.0,0.64028303]
[1748844204145,0.03923842,104880.0,104870.0,0.35680435]
[1748844204351,0.03923842,104880.0,104870.0,0.64028304]
[1748844204520,0.02970436,104880.0,104870.0,0.64028304]
[1748844204946,0.02970436,104880.0,104870.0,0.65810542]
[1748844205152,0.03923842,104880.0,104870.0,0.64028304]
[1748844205352,0.03923842,104880.0,104870.0,0.64696643]
[1748844205600,0.02970436,104880.0,104870.0,0.66478882]
[1748844205803,0.02984358,104880.0,104870.0,0.66478881]
[1748844206127,0.02984358,104880.0,104870.0,0.66478988]
[1748844206674,0.02984358,104880.0,104870.0,0.66479769]
[1748844207186,0.02984358,104880.0,104870.0,0.66480062]
[1748844207381,0.02984358,104880.0,104870.0,0.64697414]
[1748844207582,0.02984358,104880.0,104870.0,0.64028304]
[1748844207952,0.02984358,104880.0,104870.0,0.64697414]
[1748844208152,0.02984358,104880.0,104870.0,0.66481708]
[1748844208547,0.02984358,104880.0,104870.0,0.66481707]
[1748844208739,0.02984358,104880.0,104870.0,0.65812597]
[1748844209049,0.02984358,104880.0,104870.0,0.66482595]
[1748844209239,0.0203097,104880.0,104870.0,0.66482595]
[1748844209442,0.0203097,104880.0,104870.0,0.9847894]
[1748844209657,0.0203097,104880.0,104870.0,0.98479594]
[1748844209801,0.0203097,104880.0,104870.0,0.98479585]
[1748844210211,0.0203097,104880.0,104870.0,0.64028303]
[1748844210421,0.0203097,104880.0,104870.0,0.98479524]
[1748844210898,0.0203097,104880.0,104870.0,0.96693968]
[1748844211120,0.0203097,104880.0,104870.0,0.96024385]
[1748844211319,0.0203097,104880.0,104870.0,0.64028303]
[1748844211948,0.0203097,104880.0,104870.0,0.64698069]
[1748844212109,0.0203097,104880.0,104870.0,0.66484111]
[1748844212540,0.0203097,104880.0,104870.0,0.64028303]
[1748844212751,0.0203097,104880.0,104870.0,0.64028295]
[1748844212971,0.0203097,104880.0,104870.0,0.66484274]
[1748844213425,0.0203097,104880.0,104870.0,0.64028295]
[1748844213651,0.0203097,104880.0,104870.0,0.66484274]
[1748844214294,0.0203097,104880.0,104870.0,0.66484559]
[1748844214495,0.0203097,104880.0,104870.0,0.66484977]
[1748844214949,0.0203097,104880.0,104870.0,0.66485109]
[1748844215350,0.0203097,104880.0,104870.0,0.66485044]
[1748844215735,0.0203097,104880.0,104870.0,0.98967654]
[1748844215937,0.0203097,104880.0,104870.0,1.09281739]
[1748844216295,0.0203097,104880.0,104870.0,1.09281433]
[1748844216621,0.0203097,104880.0,104870.0,1.1214332]
[1748844216817,0.0183097,104880.0,104870.0,0.80149184]
[1748844217025,0.0183097,104880.0,104870.0,1.12243292]
[1748844217230,0.0183097,104880.0,104870.0,1.12242335]
[1748844217664,0.0183097,104880.0,104870.0,1.1224184]
[1748844217864,0.0173097,104880.0,104870.0,1.12241243]
[1748844218093,0.0173097,104880.0,104870.0,1.11852563]
[1748844218495,0.0173097,104880.0,104870.0,1.11852549]
[1748844218694,0.0173097,104880.0,104870.0,1.09398388]
[1748844218889,0.0173097,104880.0,104870.0,1.11852317]
[1748844219381,0.0173097,104880.0,104870.0,1.12340209]
[1748844219857,0.0173097,104880.0,104870.0,1.52340209]
[1748844220120,0.0173097,104880.0,104870.0,1.50555997]
[1748844220289,0.0173097,104880.0,104870.0,1.52339604]
[1748844220496,0.0173097,104880.0,104870.0,1.50555833]
[1748844220728,0.0173097,104880.0,104870.0,1.51670689]
[1748844220900,0.0173097,104880.0,104870.0,1.52339138]
[1748844221722,0.0173097,104880.0,104870.0,1.52338787]
[1748844221932,0.0173097,104880.0,104870.0,1.52338743]
[1748844223010,0.0173097,104880.0,104870.0,1.50555518]
[1748844223190,0.0173097,104880.0,104870.0,1.23322418]
[1748844223390,0.0173097,104880.0,104870.0,1.52334405]
[1748844223592,0.0173097,104880.0,104870.0,1.50551505]
[1748844223813,0.0173097,104880.0,104870.0,1.52334405]
[1748844224016,0.0173097,104880.0,104870.0,1.52334243]
[1748844224221,0.0173097,104880.0,104870.0,1.51665701]
[1748844224433,0.0173097,104880.0,104870.0,1.52334244]
[1748844225249,0.0173097,104880.0,104870.0,1.52334107]
[1748844225446,0.0173097,104880.0,104870.0,1.52334089]
[1748844225844,0.0173097,104880.0,104870.0,1.49882897]
[1748844226052,0.0173097,104880.0,104870.0,1.52333866]
[1748844226806,0.0173097,104880.0,104870.0,1.5166542]
[1748844227014,0.0173097,104880.0,104870.0,1.52333826]
[1748844227514,0.0173097,104880.0,104870.0,1.52333719]
[1748844227886,0.0173097,104880.0,104870.0,1.52028708]
[1748844228239,0.0173097,104880.0,104870.0,1.51540178]
[1748844228451,0.0173097,104880.0,104870.0,1.52028203]
[1748844228645,0.0173097,104880.0,104870.0,1.5233321]
[1748844229005,0.0173097,104880.0,104870.0,1.52333202]
[1748844229288,0.0173097,104880.0,104870.0,1.49577381]
[1748844229486,0.0173097,104880.0,104870.0,1.52028248]
[1748844229804,0.0173097,104880.0,104870.0,1.52028246]
[1748844230155,0.0173097,104880.0,104870.0,1.4975777]
[1748844230360,0.0173097,104880.0,104870.0,1.51540209]
[1748844230559,0.0173097,104880.0,104870.0,1.5233323]
[1748844230764,0.0173097,104880.0,104870.0,1.51664946]
[1748844230964,0.0173097,104880.0,104870.0,1.52333409]
[1748844231183,0.0173097,104880.0,104870.0,1.5055084]
[1748844231403,0.0173097,104880.0,104870.0,1.52333409]
[1748844231770,0.0173097,104880.0,104870.0,1.52028402]
[1748844232326,0.0173097,104880.0,104870.0,1.51540388]
[1748844232544,0.0173097,104880.0,104870.0,1.51540606]
[1748844232680,0.0173097,104880.0,104870.0,1.49577371]
[1748844232885,0.0173097,104880.0,104870.0,1.52028647]
[1748844233219,0.0173097,104880.0,104870.0,1.52322888]
[1748844233425,0.0173097,104880.0,104870.0,1.50540109]
[1748844233573,0.0173097,104880.0,104870.0,1.523229]
[1748844234328,0.0173097,104880.0,104870.0,1.52017907]
[1748844234523,0.0173097,104880.0,104870.0,1.51349353]
[1748844234685,0.0173097,104880.0,104870.0,1.52322912]
[1748844235091,0.0173097,104880.0,104870.0,1.51654358]
[1748844235299,0.0173097,104880.0,104870.0,1.52322965]
[1748844236238,0.0173097,104880.0,104870.0,1.5232305]
[1748844236695,0.0173097,104880.0,104870.0,1.5232329]
[1748844236886,0.0173097,104880.0,104870.0,1.52323291]
[1748844237586,0.0173097,104880.0,104870.0,1.52323308]
[1748844237912,0.0173097,104880.0,104870.0,1.53534689]
[1748844238151,0.0173097,104880.0,104870.0,1.52420237]
[1748844238412,0.0173097,104880.0,104870.0,1.54203773]
[1748844239224,0.0173097,104880.0,104870.0,1.53715768]
[1748844239420,0.0173097,104880.0,104870.0,1.53715794]
[1748844239663,0.0173097,104880.0,104870.0,1.53715807]
[1748844239875,0.0173097,104880.0,104870.0,1.53047256]
[1748844240160,0.0173097,104880.0,104870.0,1.53716146]
[1748844240376,0.0173097,104880.0,104870.0,1.53716149]
[1748844240711,0.0173097,104880.0,104870.0,1.53411117]
[1748844240915,0.0173097,104880.0,104870.0,1.53716122]
[1748844241119,0.0173097,104880.0,104870.0,1.53715815]
[1748844241546,0.0173097,104880.0,104870.0,1.53715841]
[1748844241749,0.0173097,104880.0,104870.0,1.53047024]
[1748844241954,0.0173097,104880.0,104870.0,1.51932352]
[1748844242277,0.0173097,104880.0,104870.0,1.2173249]
[1748844242513,0.0173097,104880.0,104870.0,1.53715817]
[1748844242732,0.0173097,104880.0,104870.0,1.53716281]
[1748844243135,0.0173097,104880.0,104870.0,1.5371626]
[1748844243487,0.0173097,104880.0,104870.0,1.53716261]
[1748844243700,0.0173097,104880.0,104870.0,1.53716821]
[1748844244987,0.0173097,104880.0,104870.0,1.5371703]
[1748844245212,0.0173097,104880.0,104870.0,1.51932835]
[1748844245468,0.0173097,104880.0,104870.0,1.53717589]
[1748844245652,0.0173097,104880.0,104870.0,1.53717599]
[1748844245801,0.0173097,104880.0,104870.0,1.53713949]
[1748844246000,0.0173097,104880.0,104870.0,1.5371464]
[1748844246422,0.0173097,104880.0,104870.0,1.85697967]
[1748844246888,0.0173097,104880.0,104870.0,1.83242879]
[1748844247326,0.29828583,104920.0,104870.0,2.16167736]
[1748844247327,0.0153,104920.0,104870.0,2.16167736]
[1748844247596,0.00048651,104920.0,104910.0,0.58128746]
[1748844247824,0.00048651,104920.0,104910.0,0.6088854]
[1748844248024,0.00048651,104920.0,104910.0,1.27712786]
[1748844248233,0.00048651,104920.0,104910.0,1.67712495]
[1748844248492,0.00048651,104920.0,104910.0,1.69348725]
[1748844248724,0.00048651,104920.0,104910.0,1.73113599]
[1748844248939,0.00048651,104920.0,104910.0,1.72625738]
[1748844249182,0.00048651,104920.0,104910.0,1.72557044]
[1748844249426,0.00048651,104920.0,104910.0,1.82241979]
[1748844249661,0.00048651,104920.0,104910.0,2.13749979]
[1748844249905,0.00048651,104920.0,104910.0,2.14749979]
[1748844250461,0.00048651,104920.0,104910.0,2.12969404]
[1748844250705,0.00048651,104920.0,104910.0,1.49071444]
[1748844250930,0.00048651,104920.0,104910.0,2.12869404]
[1748844251148,0.00048651,104920.0,104910.0,2.10991109]
[1748844251351,0.00048651,104920.0,104910.0,2.14544256]
[1748844251565,0.00048651,104920.0,104910.0,2.15244256]
[1748844252385,0.00048651,104920.0,104910.0,2.15241455]
[1748844253266,0.00048651,104920.0,104910.0,1.51343495]
[1748844253478,0.00048651,104920.0,104910.0,2.15725727]
[1748844253688,0.00048651,104920.0,104910.0,1.51825182]
[1748844253819,0.00048651,104920.0,104910.0,2.15723142]
[1748844254019,0.00048651,104920.0,104910.0,2.1572196]
[1748844254241,0.00048651,104920.0,104910.0,2.48212025]
[1748844254445,0.00048651,104920.0,104910.0,2.47727674]
[1748844254755,0.00048651,104920.0,104910.0,2.47727607]
[1748844254960,0.00048651,104920.0,104910.0,2.47727588]
[1748844255248,0.00048651,104920.0,104910.0,2.49497053]
[1748844255949,0.00048651,104920.0,104910.0,2.47064033]
[1748844256151,0.00048651,104920.0,104910.0,2.49495638]
[1748844256332,0.00048651,104920.0,104910.0,2.49495637]
[1748844256534,0.0352,104960.0,104910.0,2.49495637]
[1748844256535,0.02,104960.0,104950.0,0.02858394]
[1748844256739,0.02,104960.0,104950.0,0.66119264]
[1748844256740,0.0201392,104960.0,104950.0,0.66119264]
[1748844256938,0.0201392,104960.0,104950.0,0.33930334]
[1748844257180,0.0201392,104960.0,104950.0,1.38163271]
[1748844257384,0.0201392,104960.0,104950.0,1.38163043]
[1748844257524,0.0201392,104960.0,104950.0,0.98163043]
[1748844257731,0.0201392,104960.0,104950.0,0.66213827]
[1748844257935,0.0221392,104960.0,104950.0,0.98162807]
[1748844258139,0.0201392,104960.0,104950.0,1.09073427]
[1748844258387,0.0201392,104960.0,104950.0,1.41022407]
[1748844258553,0.0201392,104960.0,104950.0,1.40359804]
[1748844258758,0.0211392,104960.0,104950.0,1.40358771]
[1748844258995,0.0211392,104960.0,104950.0,1.41020898]